bitfinex/quotes_BTCUSD_20241003
["timestamp","ask_amount","ask_price","bid_price","bid_amount"]
[1727969891572,0.330825,60455.0,60450.0,0.165423]
[1727969891841,0.1748,60453.0,60442.0,0.24872116]
[1727969892071,0.165443,60444.0,60443.0,0.24872116]
[1727969892319,0.353847,60451.0,60439.0,0.00043759]
[1727969892320,0.165452,60441.0,60439.0,0.00043759]
[1727969892551,0.330891,60443.0,60439.0,0.00043759]
[1727969892552,0.165449,60442.0,60439.0,0.00043759]
[1727969892782,0.215083,60442.0,60439.0,0.00043759]
[1727969893037,0.24872116,60440.0,60439.0,0.00043759]
[1727969893295,0.245551,60441.0,60439.0,0.00043759]
[1727969893557,0.258053,60440.0,60439.0,0.00043759]
[1727969894474,0.281053,60440.0,60439.0,0.00043759]
[1727969894704,0.57344509,60440.0,60439.0,0.00043759]
[1727969894931,0.71485423,60440.0,60439.0,0.00043759]
[1727969895399,0.5294613,60428.0,60416.0,0.331034]
[1727969895684,0.5294613,60428.0,60414.0,0.332678]
[1727969895685,0.243186,60428.0,60414.0,0.001634]
[1727969895917,0.243186,60428.0,60414.0,0.332682]
[1727969896158,0.243186,60428.0,60426.0,0.16549]
[1727969896159,0.0777,60428.0,60426.0,0.16549]
[1727969896390,0.0774,60436.0,60430.0,0.33096]
[1727969896628,0.0774,60436.0,60421.0,0.24872116]
[1727969896629,0.24872116,60435.0,60421.0,0.24872116]
[1727969896857,0.05385688,60435.0,60428.0,0.330971]
[1727969897121,0.242864,60436.0,60431.0,0.165475]
[1727969897357,0.165473,60433.0,60429.0,0.165482]
[1727969897587,0.242864,60436.0,60431.0,0.165477]
[1727969897819,0.0774,60436.0,60433.0,0.165471]
[1727969898045,0.0774,60436.0,60433.0,0.165469]
[1727969898282,0.165468,60435.0,60431.0,0.165477]
[1727969898550,0.14591799,60436.0,60430.0,0.330959]
[1727969898785,0.013,60433.0,60431.0,0.165476]
[1727969899242,0.41419216,60434.0,60426.0,0.330982]
[1727969899502,0.330945,60433.0,60429.0,0.165482]
[1727969899744,0.2159613,60432.0,60428.0,0.165484]
[1727969899978,0.014,60435.0,60434.0,0.165469]
[1727969900680,0.0804,60443.0,60428.0,0.330971]
[1727969900910,0.0804,60443.0,60441.0,0.16545]
[1727969901410,0.0804,60443.0,60428.0,0.330971]
[1727969901411,0.32912116,60450.0,60436.0,0.165462]
[1727969901641,0.05377943,60449.0,60431.0,0.2842753]
[1727969901886,0.05377943,60449.0,60429.0,0.24872116]
[1727969901887,0.05377943,60449.0,60446.0,0.165435]
[1727969902121,0.05377943,60449.0,60437.0,0.165461]
[1727969902122,0.009,60442.0,60437.0,0.165461]
[1727969902351,0.009,60442.0,60441.0,0.16545]
[1727969902590,0.165438,60446.0,60442.0,0.165447]
[1727969902833,0.53299646,60443.0,60430.0,0.24872116]
[1727969903065,0.0763,60434.0,60431.0,0.165476]
[1727969903342,0.0763,60434.0,60429.0,0.57968716]
[1727969903603,0.10224265,60434.0,60430.0,0.330958]
[1727969903855,0.10224265,60434.0,60427.0,0.001636]
[1727969903856,0.33095,60432.0,60427.0,0.001636]
[1727969904097,0.29449957,60433.0,60427.0,0.001636]
[1727969904375,0.330951,60432.0,60427.0,0.001636]
[1727969904649,0.188483,60429.0,60428.0,0.33344559]
[1727969904918,0.53869142,60429.0,60428.0,0.10552461]
[1727969905193,0.165521,60415.0,60406.0,0.331088]
[1727969905449,0.4497963,60415.0,60409.0,0.167173]
[1727969905731,0.4747963,60415.0,60409.0,0.001636]
[1727969905976,0.69950544,60415.0,60409.0,0.001636]
[1727969906226,0.83366188,60415.0,60409.0,0.001636]
[1727969906476,0.83566188,60415.0,60409.0,0.001636]
[1727969906762,0.88585274,60415.0,60409.0,0.001636]
[1727969907030,0.5728103,60410.0,60409.0,0.001636]
[1727969907516,0.4748353,60401.0,60400.0,4e-05]
[1727969907760,0.78633857,60401.0,60400.0,4e-05]
[1727969907994,0.91934771,60401.0,60400.0,4e-05]
[1727969908269,0.61762251,60401.0,60400.0,4e-05]
[1727969909000,0.90189781,60401.0,60400.0,4e-05]
[1727969909242,0.91289781,60401.0,60400.0,4e-05]
[1727969909703,0.92189781,60401.0,60400.0,0.00104]
[1727969909939,0.40931778,60401.0,60400.0,0.00104]
[1727969910176,0.69559308,60401.0,60400.0,0.00104]
[1727969911224,0.69359308,60401.0,60400.0,0.00104]
[1727969911452,0.66763384,60401.0,60400.0,0.00104]
[1727969911678,0.83082055,60401.0,60400.0,0.00104]
[1727969911914,0.83087938,60401.0,60400.0,0.00104]
[1727969912385,0.54660408,60401.0,60400.0,0.00104]
[1727969912645,0.20024408,60401.0,60400.0,0.00104]
[1727969912868,0.03705737,60401.0,60400.0,0.00104]
[1727969913376,0.20261737,60401.0,60400.0,0.00104]
[1727969913617,0.40891737,60401.0,60400.0,0.00104]
[1727969914373,0.40891737,60401.0,60396.0,0.001634]
[1727969914374,0.290568,60398.0,60396.0,0.001634]
[1727969914612,0.5748653,60390.0,60389.0,0.001636]
[1727969914848,0.59192267,60390.0,60389.0,0.001636]
[1727969915786,0.61788747,60390.0,60389.0,0.001636]
[1727969916033,0.77078093,60390.0,60389.0,0.001636]
[1727969916280,0.82241613,60390.0,60389.0,0.001636]
[1727969916526,0.165639,60372.0,60371.0,0.24872116]
[1727969916769,0.19808842,60372.0,60371.0,0.24872116]
[1727969917019,0.29552142,60372.0,60367.0,0.165652]
[1727969917255,0.01690091,60371.0,60370.0,0.165645]
[1727969917500,0.03402184,60371.0,60370.0,0.165645]
[1727969918194,0.03402184,60371.0,60369.0,0.165647]
[1727969918426,0.01712093,60370.0,60369.0,0.165647]
[1727969918678,0.03402184,60370.0,60369.0,0.165647]
[1727969918967,0.03402184,60370.0,60366.0,0.167291]
[1727969918968,0.08821372,60370.0,60366.0,0.167291]
[1727969919197,0.19987764,60369.0,60366.0,0.001636]
[1727969919437,0.01712093,60368.0,60366.0,0.001636]
[1727969919666,0.01724392,60367.0,60366.0,0.001636]
[1727969919903,0.03436485,60367.0,60366.0,0.167292]
[1727969920141,0.09331292,60367.0,60366.0,0.167292]
[1727969920387,0.03436485,60367.0,60366.0,0.167292]
[1727969920861,0.03436485,60367.0,60366.0,0.001636]
[1727969921393,0.20005332,60367.0,60366.0,0.001636]
[1727969921663,0.21005332,60367.0,60366.0,0.001636]
[1727969921935,0.45003519,60367.0,60366.0,0.001636]
[1727969922172,1.05042876,60367.0,60366.0,0.001636]
[1727969922438,0.4499723,60351.0,60345.0,0.24872116]
[1727969922720,0.48663711,60351.0,60345.0,0.24872116]
[1727969922960,0.48663711,60351.0,60350.0,0.01101106]
[1727969922961,0.20236181,60351.0,60350.0,0.01101106]
[1727969923240,0.31730152,60351.0,60350.0,4e-05]
[1727969923503,0.0626448,60351.0,60350.0,4e-05]
[1727969924035,0.0626448,60351.0,60350.0,0.01101106]
[1727969924304,0.0626448,60351.0,60350.0,4e-05]
[1727969924568,0.0766448,60351.0,60350.0,0.17671106]
[1727969924836,0.0626448,60351.0,60350.0,0.16574]
[1727969925096,0.0726448,60351.0,60350.0,0.17343109]
[1727969925510,0.0626448,60351.0,60350.0,0.17343109]
[1727969925512,0.04313639,60351.0,60350.0,0.17343109]
[1727969925757,0.007,60351.0,60350.0,0.17343109]
[1727969927462,0.0492903,60363.0,60362.0,0.165667]
[1727969927694,0.08450035,60363.0,60362.0,0.165667]
[1727969927980,0.03521005,60363.0,60362.0,0.17329648]
[1727969928225,0.0685322,60363.0,60362.0,0.00762948]
[1727969928457,0.26016856,60363.0,60359.0,0.165674]
[1727969928694,0.165671,60361.0,60357.0,0.16568]
[1727969928932,0.165671,60361.0,60355.0,0.331371]
[1727969928933,0.03569036,60360.0,60355.0,0.331371]
[1727969929212,0.01734866,60359.0,60357.0,0.33136]
[1727969929453,0.01734866,60359.0,60358.0,0.165678]
[1727969929707,0.23396051,60363.0,60359.0,0.165673]
[1727969929708,0.23395851,60363.0,60359.0,0.165673]
[1727969929951,0.01739981,60362.0,60357.0,0.331361]
[1727969930242,0.06829451,60363.0,60357.0,0.331361]
[1727969930243,0.03567289,60361.0,60360.0,0.165672]
[1727969931005,0.04367289,60361.0,60360.0,0.165672]
[1727969931262,0.03567289,60361.0,60360.0,0.165672]
[1727969931748,0.04267289,60361.0,60360.0,0.17329871]
[1727969932014,0.03567289,60361.0,60360.0,0.17329871]
[1727969932267,0.04367289,60361.0,60360.0,0.00762671]
[1727969932526,0.05677048,60361.0,60360.0,0.00762671]
[1727969932773,0.05677048,60361.0,60350.0,0.000859]
[1727969932774,0.03567289,60361.0,60355.0,0.331367]
[1727969933040,0.03567289,60361.0,60359.0,0.165675]
[1727969933041,0.01739981,60360.0,60359.0,0.165675]
[1727969933244,0.05580648,60360.0,60359.0,0.165675]
[1727969933504,0.03567289,60360.0,60359.0,0.17327836]
[1727969934488,0.04267289,60360.0,60359.0,0.17327836]
[1727969934738,0.06164522,60360.0,60359.0,0.17327836]
[1727969934994,0.06264522,60360.0,60359.0,0.17327836]
[1727969935257,0.06164522,60360.0,60359.0,0.17327836]
[1727969935977,0.03567289,60360.0,60359.0,0.17327836]
[1727969936443,0.01827308,60360.0,60359.0,0.17327836]
[1727969936681,0.08278376,60360.0,60359.0,0.17327836]
[1727969936926,0.06439035,60360.0,60359.0,0.17327836]
[1727969937164,0.06439035,60360.0,60359.0,0.00760336]
[1727969937413,0.23006235,60360.0,60359.0,0.00760336]
[1727969937683,0.20768249,60360.0,60357.0,0.16568]
[1727969937911,0.331329,60363.0,60351.0,0.331394]
[1727969937912,0.0177234,60359.0,60351.0,0.331394]
[1727969938190,0.24872116,60362.0,60352.0,0.165693]
[1727969938191,0.331361,60357.0,60352.0,0.165693]
[1727969938418,0.03668274,60356.0,60351.0,0.331394]
[1727969938656,0.05842592,60355.0,60354.0,0.165686]
[1727969939140,0.05842592,60355.0,60351.0,0.331394]
[1727969939141,0.0844016,60355.0,60351.0,0.331394]
[1727969939448,0.06531288,60354.0,60351.0,0.331394]
[1727969939687,0.01916523,60354.0,60353.0,0.165691]
[1727969939920,0.10060124,60354.0,60353.0,0.165691]
[1727969940381,0.05439403,60354.0,60353.0,0.165691]
[1727969940614,0.0653948,60354.0,60353.0,0.165691]
[1727969941109,0.0723948,60354.0,60353.0,0.165691]
[1727969941361,0.05322957,60354.0,60353.0,0.342991]
[1727969941613,0.04622957,60354.0,60353.0,0.342991]
[1727969941867,0.05322957,60354.0,60353.0,0.342991]
[1727969942105,0.04622957,60354.0,60353.0,0.342991]
[1727969942338,0.001638,60366.0,60365.0,0.165658]
[1727969942611,0.03683783,60366.0,60365.0,0.165658]
[1727969943096,0.01938811,60366.0,60365.0,0.165658]
[1727969943363,0.0453563,60366.0,60365.0,0.165658]
[1727969943836,0.0453563,60366.0,60365.0,0.436158]
[1727969944078,0.29783026,60378.0,60377.0,0.165625]
[1727969944319,0.29783026,60378.0,60377.0,0.78125759]
[1727969944563,0.24872116,60378.0,60377.0,0.87585759]
[1727969944794,0.0496353,60390.0,60386.0,0.165601]
[1727969945036,0.165594,60389.0,60384.0,0.165605]
[1727969945276,0.02983565,60386.0,60371.0,0.331283]
[1727969945524,0.01559778,60383.0,60380.0,0.165616]
[1727969945815,0.01559778,60383.0,60380.0,0.165617]
[1727969946054,0.01559778,60383.0,60372.0,0.331277]
[1727969946055,0.01559778,60383.0,60382.0,0.165612]
[1727969946299,0.04156177,60383.0,60381.0,0.165612]
[1727969946536,0.04156177,60383.0,60382.0,0.165612]
[1727969946777,0.04156177,60383.0,60382.0,0.17308945]
[1727969947027,0.20717077,60383.0,60382.0,0.00747745]
[1727969947266,0.23017077,60383.0,60382.0,0.00747745]
[1727969947494,0.165617,60380.0,60376.0,0.165627]
[1727969947738,0.165617,60380.0,60373.0,0.24872116]
[1727969947739,0.01673492,60378.0,60373.0,0.24872116]
[1727969947978,0.01673492,60378.0,60368.0,0.3313]
[1727969948221,0.01673492,60378.0,60374.0,0.331263]
[1727969948458,0.01573492,60378.0,60375.0,0.16563]
[1727969948724,0.07036644,60377.0,60374.0,0.165633]
[1727969948966,0.01607783,60376.0,60374.0,0.165633]
[1727969949461,0.01607783,60376.0,60354.0,0.36133695]
[1727969949731,0.01607783,60376.0,60375.0,0.165631]
[1727969950684,0.04204393,60376.0,60375.0,0.165631]
[1727969951377,0.04904393,60376.0,60375.0,0.165631]
[1727969951608,0.04204393,60376.0,60375.0,0.165631]
[1727969952080,0.04704393,60376.0,60375.0,0.165631]
[1727969952324,0.04704393,60376.0,60370.0,0.331286]
[1727969952325,0.04204393,60376.0,60370.0,0.331286]
[1727969952558,0.04904393,60376.0,60375.0,0.165631]
[1727969953019,0.04204393,60376.0,60375.0,0.165631]
[1727969954460,0.04604393,60376.0,60375.0,0.165631]
[1727969954696,0.04204393,60376.0,60375.0,0.165631]
[1727969954953,0.04904393,60376.0,60375.0,0.165631]
[1727969955217,0.023,60368.0,60351.0,0.24872116]
[1727969955470,0.01758693,60360.0,60358.0,0.24872116]
[1727969955737,0.023,60358.0,60350.0,0.000859]
[1727969955974,0.165682,60357.0,60350.0,0.000859]
[1727969956231,0.1831817,60356.0,60350.0,0.000859]
[1727969956472,0.165689,60354.0,60350.0,0.000859]
[1727969956727,0.0174977,60355.0,60350.0,0.000859]
[1727969956997,0.48742024,60354.0,60350.0,0.000859]
[1727969957281,0.66342024,60354.0,60350.0,0.000859]
[1727969958214,0.67042024,60354.0,60350.0,0.000859]
[1727969958450,0.68939992,60354.0,60350.0,0.000859]
[1727969958676,0.69939992,60354.0,60350.0,0.000859]
[1727969958906,0.8606809,60354.0,60350.0,0.000859]
[1727969959138,0.8626809,60354.0,60350.0,0.000859]
[1727969959636,0.91428101,60354.0,60350.0,0.000859]
[1727969959914,1.08628152,60354.0,60350.0,0.000859]
[1727969960374,1.03728101,60354.0,60350.0,0.000859]
[1727969960601,1.08671156,60354.0,60350.0,0.000859]
[1727969960844,1.02928101,60354.0,60350.0,0.000859]
[1727969961081,0.165727,60340.0,60328.0,0.000818]
[1727969961331,0.48851349,60340.0,60328.0,0.000818]
[1727969961565,0.47092152,60340.0,60328.0,0.000818]
[1727969961794,0.79019729,60340.0,60328.0,0.000818]
[1727969962020,0.84173005,60340.0,60328.0,0.000818]
[1727969962268,0.265757,60329.0,60328.0,0.000818]
[1727969962496,0.59101367,60329.0,60328.0,0.000818]
[1727969962733,0.30587672,60329.0,60328.0,0.000818]
[1727969962962,0.59101367,60329.0,60328.0,0.000818]
[1727969963196,0.61700216,60329.0,60328.0,0.000818]
[1727969963435,0.77786906,60329.0,60328.0,0.000818]
[1727969964415,0.77986906,60329.0,60328.0,0.000818]
[1727969964642,0.95556906,60329.0,60328.0,0.000818]
[1727969964862,0.69875194,60329.0,60328.0,0.000818]
[1727969965343,0.167776,60322.0,60321.0,0.0002]
[1727969965578,0.52183337,60322.0,60321.0,0.0002]
[1727969965813,0.49351354,60322.0,60321.0,0.0002]
[1727969966040,0.4759235,60322.0,60321.0,0.0002]
[1727969966287,0.49353974,60322.0,60321.0,0.0002]
[1727969966514,0.65098668,60322.0,60321.0,0.0002]
[1727969967200,0.65298668,60322.0,60321.0,0.0002]
[1727969967440,0.75298668,60322.0,60321.0,0.0002]
[1727969967667,0.267779,60321.0,60301.0,0.0002]
[1727969967903,0.29140788,60321.0,60301.0,0.0002]
[1727969968125,0.50050521,60321.0,60301.0,0.166033]
[1727969968355,0.50050521,60321.0,60301.0,0.0002]
[1727969968582,0.52346803,60321.0,60301.0,0.0002]
[1727969968824,0.165831,60302.0,60301.0,0.0002]
[1727969969039,0.07211405,60302.0,60301.0,0.0002]
[1727969969276,0.12442195,60302.0,60301.0,0.0002]
[1727969969512,0.29025295,60302.0,60301.0,0.0002]
[1727969969719,0.12442195,60302.0,60301.0,0.0002]
[1727969969939,0.29025295,60302.0,60301.0,0.0002]
[1727969970455,0.12442195,60302.0,60301.0,0.0002]
[1727969970686,0.23794505,60302.0,60301.0,0.0002]
[1727969971151,0.58866621,60302.0,60301.0,0.0002]
[1727969971370,0.43424505,60302.0,60301.0,0.0002]
[1727969971588,0.43224505,60302.0,60301.0,0.0002]
[1727969971820,0.54989384,60302.0,60301.0,0.0002]
[1727969972267,0.06988565,60302.0,60301.0,0.166034]
[1727969972971,0.04388424,60302.0,60301.0,0.166034]
[1727969973181,0.02624061,60302.0,60301.0,0.166034]
[1727969973419,0.02599756,60309.0,60308.0,0.165815]
[1727969973666,0.02599756,60309.0,60308.0,0.45095195]
[1727969974366,0.05127576,60309.0,60308.0,0.165815]
[1727969975036,0.06895996,60309.0,60308.0,0.165815]
[1727969976192,0.0429624,60309.0,60308.0,0.165815]
[1727969976901,0.0429624,60309.0,60305.0,0.331642]
[1727969977138,0.0429624,60309.0,60301.0,0.0002]
[1727969977139,0.0176842,60309.0,60308.0,0.165815]
[1727969977367,0.24872116,60319.0,60310.0,0.331616]
[1727969977594,0.24872116,60319.0,60318.0,0.165787]
[1727969978072,0.32302337,60319.0,60318.0,0.165787]
[1727969978312,0.11587096,60319.0,60318.0,0.165787]
[1727969979212,0.11587096,60319.0,60316.0,0.165792]
[1727969979407,0.18983015,60318.0,60313.0,0.1658]
[1727969979641,0.0700793,60318.0,60311.0,0.331609]
[1727969979908,0.21183015,60317.0,60312.0,0.165803]
[1727969980200,0.165811,60310.0,60305.0,0.165823]
[1727969980483,0.02445346,60313.0,60301.0,0.332686]
[1727969980484,0.02493454,60307.0,60301.0,0.332686]
[1727969980757,0.19075354,60307.0,60302.0,0.165831]
[1727969980983,0.16235024,60306.0,60301.0,0.001018]
[1727969981240,0.02596562,60305.0,60302.0,0.331658]
[1727969981472,0.02596562,60305.0,60304.0,0.165826]
[1727969981707,0.02596562,60305.0,60303.0,0.331658]
[1727969981933,0.02596562,60305.0,60304.0,0.165826]
[1727969983642,0.02599665,60306.0,60305.0,0.165823]
[1727969983865,0.05175603,60306.0,60305.0,0.165823]
[1727969984630,0.02599665,60306.0,60305.0,0.165823]
[1727969985579,0.0491371,60314.0,60313.0,0.165801]
[1727969986050,0.24872116,60319.0,60318.0,0.165787]
[1727969986589,0.29867916,60326.0,60319.0,0.165785]
[1727969987059,0.46444516,60326.0,60319.0,0.165785]
[1727969987549,0.29867916,60326.0,60319.0,0.165785]
[1727969988785,0.29867916,60326.0,60302.0,0.38043695]
[1727969988786,0.02762536,60320.0,60302.0,0.38043695]
[1727969989015,0.02762536,60320.0,60304.0,0.00674129]
[1727969989251,0.165785,60319.0,60316.0,0.165792]
[1727969989496,0.165785,60319.0,60316.0,0.165793]
[1727969989753,0.02762536,60320.0,60315.0,0.331588]
[1727969989994,0.001636,60320.0,60315.0,0.331591]
[1727969990229,0.001636,60320.0,60319.0,0.165785]
[1727969990972,0.0254023,60320.0,60319.0,0.165785]
[1727969993211,0.02762547,60320.0,60319.0,0.165785]
[1727969993498,0.02762547,60320.0,60319.0,0.265785]
[1727969994288,0.02762547,60320.0,60319.0,0.29555592]
[1727969996032,0.001636,60320.0,60319.0,0.29555592]
[1727969996994,0.001636,60320.0,60319.0,0.29681384]
[1727969997538,0.001636,60320.0,60319.0,0.2983704]
[1727969997802,0.001636,60320.0,60319.0,0.27255592]
[1727970000063,0.001636,60320.0,60319.0,0.29555592]
[1727970001799,0.24872116,60328.0,60327.0,0.165763]
[1727970002049,0.0497315,60334.0,60333.0,0.288746]
[1727970002272,0.0497315,60334.0,60333.0,0.57388295]
[1727970002503,0.02598275,60343.0,60334.0,0.288744]
[1727970002769,0.02598275,60343.0,60341.0,0.165724]
[1727970002993,0.02598275,60343.0,60341.0,0.45169472]
[1727970003217,0.02598275,60343.0,60342.0,0.165722]
[1727970003507,0.24872116,60356.0,60355.0,0.165686]
[1727970003747,0.24872116,60356.0,60355.0,0.45082295]
[1727970004501,0.0259744,60360.0,60354.0,0.331376]
[1727970004502,0.0259744,60360.0,60359.0,0.165675]
[1727970004729,0.04424748,60360.0,60359.0,0.165675]
[1727970005174,0.06523843,60360.0,60356.0,0.331367]
[1727970005419,0.01847895,60359.0,60358.0,0.165678]
[1727970005639,0.01847895,60359.0,60335.0,0.1779]
[1727970005640,0.174,60358.0,60335.0,0.1779]
[1727970005868,0.01964569,60357.0,60355.0,0.165684]
[1727970006106,0.01964569,60357.0,60335.0,0.1779]
[1727970006107,0.01964569,60357.0,60356.0,0.165683]
[1727970006331,0.01868481,60357.0,60356.0,0.165683]
[1727970009067,0.04465691,60357.0,60356.0,0.165683]
[1727970009292,0.21033791,60357.0,60353.0,0.16569]
[1727970009537,0.21033791,60357.0,60351.0,0.165696]
[1727970009538,0.03992449,60356.0,60351.0,0.165696]
[1727970009789,0.03992449,60356.0,60342.0,0.331442]
[1727970009790,0.411375,60355.0,60349.0,0.331405]
[1727970009990,0.411375,60355.0,60342.0,0.331442]
[1727970009991,0.165692,60353.0,60342.0,0.331442]
[1727970010238,0.01992027,60351.0,60344.0,0.33143]
[1727970010466,0.01992027,60351.0,60350.0,0.1657]
[1727970012126,0.0299123,60351.0,60350.0,0.1657]
[1727970012350,0.01992027,60351.0,60350.0,0.1657]
[1727970012578,0.01992027,60351.0,60346.0,0.165708]
[1727970012579,0.1657,60350.0,60346.0,0.165708]
[1727970012805,0.08,60355.0,60335.0,0.1]
[1727970012806,0.24872116,60347.0,60335.0,0.1]
[1727970013028,0.24872116,60347.0,60328.0,0.331517]
[1727970013029,0.02081278,60346.0,60338.0,0.33146]
[1727970013260,0.02081278,60346.0,60345.0,0.165713]
[1727970013744,0.08,60355.0,60354.0,0.165689]
[1727970013986,0.01895934,60355.0,60354.0,0.165689]
[1727970014445,0.02597483,60355.0,60354.0,0.165689]
[1727970014671,0.02597483,60355.0,60354.0,0.45082595]
[1727970015150,0.02597483,60355.0,60354.0,0.165689]
[1727970016306,0.001634,60366.0,60365.0,0.165658]
[1727970016529,0.01908372,60366.0,60365.0,0.165658]
[1727970017430,0.001634,60366.0,60365.0,0.165658]
[1727970017659,0.01908372,60366.0,60365.0,0.165658]
[1727970017902,0.01908372,60366.0,60363.0,0.331328]
[1727970018130,0.01908372,60366.0,60342.0,0.25372116]
[1727970018131,0.01758693,60365.0,60364.0,0.165661]
[1727970018817,0.01758693,60365.0,60360.0,0.331342]
[1727970019038,0.01758693,60365.0,60364.0,0.165661]
[1727970020391,0.001634,60366.0,60365.0,0.165658]
[1727970020614,0.01908372,60366.0,60365.0,0.165658]
[1727970022173,0.01908372,60366.0,60361.0,0.331336]
[1727970022401,0.01908372,60366.0,60350.0,0.4712]
[1727970022402,0.05276193,60365.0,60350.0,0.4712]
[1727970022649,0.165675,60359.0,60355.0,0.165683]
[1727970022869,0.0186162,60358.0,60357.0,0.16568]
[1727970024011,0.02597351,60362.0,60361.0,0.165669]
[1727970024284,0.02597351,60362.0,60355.0,0.331372]
[1727970024285,0.07926498,60362.0,60355.0,0.331372]
[1727970024511,0.01841031,60361.0,60359.0,0.165673]
[1727970024725,0.01841031,60361.0,60358.0,0.331355]
[1727970024726,0.01841031,60361.0,60358.0,0.165676]
[1727970025010,0.01841031,60361.0,60345.0,0.33805898]
[1727970025266,0.01841031,60361.0,60360.0,0.165672]
[1727970025483,0.01841031,60361.0,60345.0,0.00663298]
[1727970025703,0.165673,60360.0,60357.0,0.16568]
[1727970025927,0.01841031,60359.0,60357.0,0.16568]
[1727970026154,0.01841031,60359.0,60353.0,0.33138]
[1727970026155,0.41156539,60359.0,60353.0,0.33138]
[1727970026385,0.24588639,60359.0,60356.0,0.165683]
[1727970026637,0.24588639,60359.0,60358.0,0.165678]
[1727970026638,0.01841031,60359.0,60358.0,0.165678]
[1727970026901,0.24872116,60358.0,60343.0,0.1]
[1727970027138,0.01950841,60348.0,60330.0,0.331504]
[1727970027361,0.165731,60339.0,60333.0,0.24872116]
[1727970027636,0.02149945,60338.0,60335.0,0.165738]
[1727970027878,0.02149945,60338.0,60337.0,0.165735]
[1727970029707,0.02149945,60338.0,60323.0,0.4712]
[1727970029926,0.08166561,60338.0,60330.0,0.331508]
[1727970030151,0.24872116,60334.0,60332.0,0.165746]
[1727970030436,0.02191151,60333.0,60332.0,0.165749]
[1727970031358,0.02598439,60333.0,60332.0,0.165749]
[1727970031564,0.04796458,60333.0,60332.0,0.165749]
[1727970032455,0.04796458,60333.0,60332.0,0.166567]
[1727970033446,0.07763315,60333.0,60332.0,0.166567]
[1727970034152,0.04796458,60333.0,60332.0,0.166567]
[1727970034679,0.02598439,60333.0,60332.0,0.166567]
[1727970036039,0.1277609,60345.0,60342.0,0.165722]
[1727970036256,0.26932797,60343.0,60342.0,0.165722]
[1727970036941,0.02060681,60343.0,60342.0,0.165722]
[1727970037630,0.05628839,60343.0,60335.0,0.33148]
[1727970037873,0.05628839,60343.0,60338.0,0.331461]
[1727970037874,0.02108744,60342.0,60338.0,0.331461]
[1727970038104,0.02108744,60342.0,60341.0,0.165724]
[1727970038321,0.02108744,60342.0,60332.0,0.000818]
[1727970038322,0.05681708,60342.0,60332.0,0.000818]
[1727970038570,0.165727,60340.0,60332.0,0.000818]
[1727970038802,0.165736,60337.0,60334.0,0.165743]
[1727970039015,0.02156813,60336.0,60332.0,0.166566]
[1727970039243,0.02156813,60336.0,60332.0,0.166567]
[1727970039244,0.165743,60335.0,60332.0,0.166567]
[1727970039462,0.35304613,60336.0,60332.0,0.166567]
[1727970039463,0.02184283,60334.0,60332.0,0.166567]
[1727970039698,0.02184283,60334.0,60333.0,0.165746]
[1727970039915,0.02184283,60334.0,60332.0,0.166564]
[1727970040136,0.02184283,60334.0,60333.0,0.165746]
[1727970040137,0.04146974,60334.0,60333.0,0.165746]
[1727970040427,0.48643681,60345.0,60343.0,0.165719]
[1727970040428,0.04945004,60344.0,60343.0,0.165719]
[1727970040661,0.20129986,60345.0,60328.0,0.28513695]
[1727970040662,0.1271248,60345.0,60328.0,0.28513695]
[1727970040881,0.1271248,60345.0,60317.0,0.4712]
[1727970040882,0.165738,60337.0,60327.0,0.331524]
[1727970041105,0.331439,60343.0,60331.0,0.331504]
[1727970041319,0.165734,60338.0,60334.0,0.165742]
[1727970041537,0.0175353,60337.0,60334.0,0.165742]
[1727970041793,0.0175353,60336.0,60331.0,0.331504]
[1727970041993,0.0175353,60335.0,60334.0,0.165743]
[1727970042448,0.0175353,60335.0,60334.0,0.45087995]
[1727970043205,0.0175353,60335.0,60334.0,0.165743]
[1727970043460,0.04351707,60335.0,60334.0,0.45087995]
[1727970043675,0.04351707,60335.0,60334.0,0.165743]
[1727970044445,0.04351707,60335.0,60334.0,0.165744]
[1727970044446,0.04342277,60335.0,60334.0,0.165744]
[1727970044991,0.165746,60333.0,60332.0,0.000818]
[1727970045231,0.39775462,60333.0,60332.0,0.000818]
[1727970045490,0.87230013,60333.0,60332.0,0.000818]
[1727970045714,0.54936004,60333.0,60332.0,0.000818]
[1727970046186,0.54936004,60333.0,60311.0,0.331612]
[1727970046187,0.165782,60320.0,60311.0,0.331612]
[1727970046406,0.2069893,60320.0,60313.0,0.165801]
[1727970046638,0.26084363,60320.0,60311.0,0.331612]
[1727970046889,0.24340263,60320.0,60311.0,0.331612]
[1727970047100,0.2070794,60320.0,60315.0,0.165795]
[1727970047561,0.2070794,60320.0,60309.0,0.331622]
[1727970047777,0.3808794,60320.0,60307.0,0.165817]
[1727970048044,0.4808794,60320.0,60305.0,0.16664]
[1727970048259,0.4808794,60320.0,60308.0,0.165815]
[1727970048471,0.4808794,60320.0,60305.0,0.166639]
[1727970048686,0.50887432,60320.0,60305.0,0.166639]
[1727970048905,0.7060684,60320.0,60305.0,0.000818]
[1727970049129,0.0772,60306.0,60305.0,0.000818]
[1727970049347,0.12042174,60306.0,60305.0,0.000818]
[1727970049570,0.28624174,60306.0,60305.0,0.000818]
[1727970049819,0.37754174,60306.0,60305.0,0.000818]
[1727970050041,0.54078643,60306.0,60305.0,0.000818]
[1727970052045,0.21177972,60306.0,60305.0,0.000818]
[1727970052288,0.12047972,60306.0,60305.0,0.166641]
[1727970052502,0.12047972,60306.0,60305.0,0.000818]
[1727970052722,0.31229799,60306.0,60305.0,0.000818]
[1727970052945,0.2689051,60306.0,60305.0,0.000818]
[1727970053191,0.26886995,60306.0,60305.0,0.000818]
[1727970053699,0.43468995,60306.0,60305.0,0.000818]
[1727970054198,0.26886995,60306.0,60305.0,0.000818]
[1727970054408,0.43468995,60306.0,60305.0,0.000818]
[1727970054849,0.14644284,60306.0,60305.0,0.166641]
[1727970055089,0.06924284,60306.0,60305.0,0.166641]
[1727970055324,0.04324457,60306.0,60305.0,0.166641]
[1727970055791,0.04324457,60306.0,60305.0,0.45177795]
[1727970056014,0.04324457,60306.0,60305.0,0.166641]
[1727970057209,0.06414983,60306.0,60305.0,0.166641]
[1727970057457,0.04324457,60306.0,60305.0,0.166641]
[1727970058604,0.06923989,60306.0,60305.0,0.166641]